bitfinex-derivatives/quotes_ETHF0:USTF0_20250107
["timestamp","ask_amount","ask_price","bid_price","bid_amount"]
[1736217222802,2.1472148,3691.6,3690.7,0.4329]
[1736217223003,0.27082,3691.1,3690.9,0.4139]
[1736217223805,0.27082,3691.1,3690.8,0.4325]
[1736217224106,0.27082,3691.1,3690.7,40.8]
[1736217224311,4.4829148,3691.3,3690.7,40.8]
[1736217224312,0.27081,3691.2,3690.7,40.8]
[1736217224509,0.27084,3690.8,3690.7,40.8]
[1736217225511,0.27084,3690.8,3690.7,40.97]
[1736217227304,0.27084,3690.8,3690.7,40.8]
[1736217227714,0.70314,3690.8,3690.7,40.8]
[1736217227912,0.27088,3690.3,3690.2,0.8779]
[1736217228106,0.4323,3690.8,3690.0,3.2078]
[1736217228107,2.1472148,3690.6,3690.0,3.2078]
[1736217228309,0.42,3690.5,3690.0,3.2078]
[1736217228505,0.2709,3690.1,3690.0,3.2078]
[1736217228710,0.435,3690.4,3690.0,3.2078]
[1736217228913,0.42,3690.5,3690.1,40.8]
[1736217228914,0.27088,3690.3,3690.1,40.8]
[1736217229108,0.68548,3690.3,3690.1,40.8]
[1736217229312,0.27089,3690.2,3690.1,40.8]
[1736217230012,0.68548,3690.3,3690.1,40.8]
[1736217230210,0.27088,3690.4,3690.1,41.90089]
[1736217230508,0.27089,3690.3,3690.1,41.63]
[1736217231809,0.4146,3690.8,3690.1,40.8]
[1736217232007,0.27089,3690.2,3690.1,40.8]
[1736217232413,0.27089,3690.3,3690.1,40.8]
[1736217232712,0.4146,3690.8,3690.1,41.0709]
[1736217233703,0.27087,3690.5,3690.2,0.27088]
[1736217234513,0.27087,3690.5,3690.3,40.8]
[1736217234710,0.27087,3690.4,3690.3,40.8]
[1736217236708,1.4676,3690.8,3690.3,40.8]
[1736217236903,0.27086,3690.7,3690.4,0.27087]
[1736217237516,0.27086,3690.6,3690.3,41.07088]
[1736217238315,1.4676,3690.8,3690.3,40.8]
[1736217238512,0.27087,3690.4,3690.3,40.8]
[1736217239411,1.4676,3690.8,3690.3,40.8]
[1736217239713,0.27086,3690.6,3690.3,41.07087]
[1736217240114,1.4676,3690.8,3690.3,41.07087]
[1736217240414,0.27087,3690.4,3690.3,40.8]
[1736217240618,1.4676,3690.8,3690.3,40.8]
[1736217240811,0.27087,3690.5,3690.3,40.8]
[1736217241108,0.4348,3690.4,3690.3,40.8]
[1736217241711,1.4676,3690.8,3690.5,0.27087]
[1736217241712,1.73845,3690.8,3690.5,0.27087]
[1736217241911,0.27086,3690.7,3690.4,0.27087]
[1736217242112,0.27086,3690.7,3690.5,0.4351]
[1736217242416,0.27087,3690.5,3690.3,41.07088]
[1736217242609,2.9966148,3690.8,3690.4,0.27087]
[1736217243607,0.27086,3690.6,3690.4,0.27087]
[1736217244114,0.27086,3690.7,3690.3,40.8]
[1736217244514,0.27085,3690.7,3690.4,0.27087]
[1736217244707,0.27086,3690.6,3690.4,0.27087]
[1736217245112,2.9966148,3690.8,3690.4,0.27087]
[1736217245322,0.27085,3690.7,3690.4,0.27087]
[1736217246113,0.27086,3690.6,3690.3,40.8]
[1736217246418,0.27086,3690.6,3690.3,41.07088]
[1736217247516,2.9966148,3690.8,3690.3,40.8]
[1736217247820,0.27087,3690.4,3690.3,40.8]
[1736217249317,0.70887,3690.4,3690.3,40.8]
[1736217249517,0.2709,3690.1,3690.0,3.2078]
[1736217249913,0.2709,3690.1,3690.0,44.0078]
[1736217250708,0.2709,3690.1,3690.0,40.8]
[1736217250916,1.3239,3690.1,3690.0,40.8]
[1736217256521,4.5317,3690.1,3690.0,40.8]
[1736217257221,1.053,3690.1,3690.0,40.8]
[1736217257417,1.053,3690.1,3690.0,41.0709]
[1736217257614,0.4168,3690.3,3690.1,0.2709]
[1736217257810,2.1472148,3690.8,3690.4,0.27087]
[1736217257811,1.053,3690.6,3690.4,0.27087]
[1736217258021,1.053,3690.6,3690.5,0.70597]
[1736217258220,0.72355,3690.8,3690.5,0.70597]
[1736217258521,0.27084,3690.9,3690.6,0.27086]
[1736217259116,0.27085,3690.8,3690.5,0.70597]
[1736217259317,0.27085,3690.8,3690.5,0.87597]
[1736217259518,0.4527,3691.0,3690.5,0.4351]
[1736217259714,0.27085,3690.7,3690.5,0.4351]
[1736217260720,0.27085,3690.8,3690.5,0.70596]
[1736217262716,0.4527,3691.0,3690.5,0.4351]
[1736217262921,0.27086,3690.6,3690.5,0.4351]
[1736217263724,0.27086,3690.7,3690.5,0.4351]
[1736217264524,0.27086,3690.6,3690.5,0.4351]
[1736217272334,0.27092,3689.8,3689.6,6.36949986]
[1736217272524,2.4181348,3689.8,3689.6,6.36949986]
[1736217272921,10.11509147,3689.8,3689.7,0.20517822]
[1736217273129,0.27092,3689.7,3689.6,5.33164808]
[1736217273332,0.4355,3689.7,3689.1,40.8]
[1736217273531,5.6259748,3689.2,3689.1,40.8]
[1736217273733,6.6789748,3689.2,3689.1,40.8]
[1736217273926,6.4080148,3689.2,3688.4,5.60266808]
[1736217274128,0.271,3688.8,3688.6,0.4273]
[1736217274532,0.271,3688.8,3688.7,40.8]
[1736217276941,4.24157391,3688.8,3688.7,40.8]
[1736217277136,4.51256391,3688.8,3688.7,40.8]
[1736217278125,0.27099,3688.8,3688.7,40.8]
[1736217278933,2.4182048,3688.8,3688.7,40.8]
[1736217279639,6.65977871,3688.8,3688.7,40.8]
[1736217281133,2.4182048,3688.8,3688.7,40.8]
[1736217282138,0.27099,3688.8,3688.7,40.8]
[1736217282732,4.24157391,3688.9,3688.8,0.27099]
[1736217282932,3.2078,3689.6,3689.2,0.27096]
[1736217283227,3.2078,3689.6,3688.8,3.6422]
[1736217283439,3.2078,3689.6,3689.2,40.8]
[1736217283440,0.27094,3689.5,3689.2,40.8]
[1736217283631,0.27094,3689.5,3689.2,40.98]
[1736217284935,6.38299546,3689.6,3689.2,40.98]
[1736217285135,0.27095,3689.4,3689.2,40.98]
[1736217285643,0.27095,3689.3,3689.2,40.98]
[1736217286742,3.44613936,3689.5,3689.2,40.98]
[1736217287040,3.17519936,3689.5,3689.2,40.98]
[1736217287241,3.17519936,3689.4,3689.2,40.98]
[1736217287437,3.17519936,3689.4,3689.2,41.4374]
[1736217287740,3.17519936,3689.4,3689.2,41.70836]
[1736217287939,3.17519936,3689.4,3689.2,41.4374]
[1736217288140,3.17519936,3689.4,3689.2,41.70836]
[1736217288541,0.27094,3689.6,3689.2,41.70836]
[1736217288740,0.27094,3689.5,3689.2,41.70836]
[1736217289141,3.17519936,3689.7,3689.2,41.4374]
[1736217289340,0.27095,3689.4,3689.2,41.4374]
[1736217289536,0.27095,3689.4,3689.2,40.98]
[1736217289744,3.2078,3689.6,3688.8,3.2078]
[1736217289930,0.27097,3689.1,3688.8,3.50879]
[1736217290132,0.27097,3689.1,3688.9,40.8]
[1736217290332,0.27097,3689.1,3688.9,41.29098]
[1736217290942,0.4145,3689.3,3688.9,41.29098]
[1736217291138,0.27096,3689.2,3688.9,41.29098]
[1736217291339,3.17519936,3689.4,3689.2,0.27096]
[1736217291537,1.45189936,3689.4,3689.3,2.4181648]
[1736217291838,1.45189936,3689.4,3689.3,6.3081648]
[1736217292037,1.45189936,3689.4,3689.3,52.1081648]
[1736217293147,1.45189936,3689.4,3689.3,47.1081648]
[1736217293339,0.27089,3690.3,3690.0,0.2709]
[1736217293540,0.27089,3690.3,3690.0,3.4787]
[1736217293742,0.27089,3690.3,3690.0,0.2709]
[1736217294847,3.2078,3690.5,3690.0,0.2709]
[1736217295049,0.27088,3690.4,3690.0,0.2709]
[1736217295454,0.27088,3690.4,3689.6,3.2078]
[1736217295651,0.27088,3690.4,3690.1,0.27089]
[1736217296949,0.27089,3690.2,3689.8,3.2078]
[1736217297151,0.2709,3690.1,3689.8,3.71871]
[1736217297351,0.27091,3689.9,3689.8,3.2078]
[1736217297546,0.27093,3689.7,3689.4,3.2078]
[1736217297853,0.8695,3690.0,3689.4,3.47874]
[1736217297854,0.4162,3689.6,3689.4,3.47874]
[1736217298250,0.68713,3689.6,3689.4,3.2078]
[1736217298450,0.4162,3689.6,3689.4,3.2078]
[1736217298645,0.4162,3689.6,3689.4,3.47875]
[1736217298850,0.4162,3689.6,3689.4,3.2078]
[1736217299251,0.68714,3689.6,3689.4,3.2078]
[1736217300360,0.4162,3689.6,3689.4,3.47875]
[1736217300856,0.4162,3689.6,3689.5,0.27094]
[1736217303055,0.8695,3690.0,3689.4,3.2078]
[1736217303255,0.4491,3689.9,3689.4,4.0578]
[1736217303453,0.4491,3689.9,3689.8,0.27092]
[1736217303656,1.053,3690.3,3689.4,4.0578]
[1736217303657,1.053,3690.3,3689.5,2.1472148]
[1736217303852,1.77298,3690.3,3689.5,2.1472148]
[1736217304049,1.5021,3690.3,3690.1,0.27089]
[1736217304254,1.5021,3690.3,3690.2,40.8]
[1736217304657,1.5021,3690.3,3690.2,41.07089]
[1736217306356,0.4533,3690.5,3690.4,0.27087]
[1736217306558,0.454,3690.8,3690.7,0.27085]
[1736217306955,0.72485,3690.8,3690.5,0.27086]
[1736217307360,0.454,3690.8,3690.3,3.2078]
[1736217307567,0.454,3690.8,3690.7,0.27085]
[1736217308271,0.454,3690.8,3690.6,0.27085]
[1736217308475,0.454,3690.8,3690.7,0.27085]
[1736217309869,0.454,3690.8,3690.7,3.47865]
[1736217312372,0.454,3690.8,3690.7,3.2078]
[1736217313077,0.27085,3690.7,3690.2,44.0078]
[1736217313577,0.454,3690.8,3690.2,44.0078]
[1736217313777,0.72485,3690.8,3690.2,44.0078]
[1736217314073,0.454,3690.8,3690.3,0.27088]
[1736217314271,0.454,3690.8,3690.2,44.0078]
[1736217314574,0.454,3690.8,3690.7,0.27085]
[1736217317874,0.454,3690.8,3690.6,0.27085]
[1736217318276,0.454,3690.8,3690.7,0.27085]
[1736217319470,0.454,3690.8,3690.6,3.2078]
[1736217319471,7.02730873,3692.0,3690.6,3.2078]
[1736217319674,0.90484655,3691.4,3691.2,2.1472148]
[1736217319880,7.42e-06,3691.4,3691.3,6.6788248]
[1736217320082,7.42e-06,3691.4,3691.3,48.2858248]
[1736217320283,7.42e-06,3691.4,3691.3,49.3388248]
[1736217321078,0.4342,3692.0,3691.3,49.0680148]
[1736217321374,0.4342,3692.0,3691.9,3.47856]
[1736217322279,0.4342,3692.0,3691.9,44.27856]
[1736217330392,0.4443,3692.5,3692.4,0.27073]
[1736217330685,0.4443,3692.5,3692.4,2.4179448]
[1736217332087,0.4443,3692.5,3692.4,0.27073]
[1736217332389,0.4443,3692.5,3692.1,2.1472148]
[1736217332588,0.4443,3692.5,3692.4,0.27073]
[1736217332978,0.4443,3692.5,3692.1,2.1472148]
[1736217333179,0.4443,3692.5,3692.2,0.27074]
[1736217333687,0.4443,3692.5,3691.1,0.67706]
[1736217333688,2.1472148,3692.3,3691.5,3.2078]
[1736217333896,0.2708,3691.5,3691.1,3.47862]
[1736217334188,2.1472148,3691.8,3691.2,40.8]
[1736217334189,0.27078,3691.7,3691.2,40.8]
[1736217334387,0.27078,3691.7,3691.3,0.2708]
[1736217334585,0.27078,3691.7,3691.4,0.2708]
[1736217334788,0.27078,3691.7,3691.3,0.27081]
[1736217335295,2.1472148,3691.8,3691.3,0.27081]
[1736217335586,0.27079,3691.6,3691.3,0.27081]
[1736217336488,0.2708,3691.5,3691.2,41.07081]
[1736217336688,0.27078,3691.7,3691.3,0.2708]
[1736217336892,0.45,3691.4,3691.3,0.2708]
[1736217350394,0.4588,3691.5,3691.4,0.2708]
[1736217353799,3.63930652,3691.5,3691.4,0.2708]
[1736217354100,3.63930652,3691.5,3691.2,40.8]
[1736217354101,0.27081,3691.3,3691.2,40.8]
[1736217355399,0.4479,3691.3,3690.6,3.2078]
[1736217355698,0.27083,3691.0,3690.8,0.27084]
[1736217355899,0.27083,3691.0,3690.9,40.8]
[1736217356389,0.27083,3691.1,3690.9,40.8]
[1736217356589,2.1472148,3691.2,3690.9,40.8]
[1736217356590,0.27083,3691.0,3690.9,40.8]
[1736217357801,4.51227985,3691.0,3690.9,40.8]
[1736217360101,0.27083,3691.0,3690.9,40.8]
[1736217361302,5.29199894,3691.1,3690.9,40.8]
[1736217361502,0.27083,3691.0,3690.9,40.8]
[1736217363701,11.74759865,3691.0,3689.8,3.2078]
[1736217363902,3.47869,3690.3,3689.9,0.27091]
[1736217364103,3.47869,3690.3,3690.0,41.0709]
[1736217364104,0.4368,3690.2,3690.0,41.0709]
[1736217364798,0.4368,3690.2,3690.1,0.2709]
[1736217365404,0.4187,3690.6,3690.1,0.4271]
[1736217365604,0.8423,3690.6,3690.4,0.27087]
[1736217365806,0.8423,3690.6,3690.1,0.4271]
[1736217365807,4.23832844,3690.4,3690.3,0.27088]
[1736217366404,4.23832844,3690.4,3690.3,0.72148]
[1736217366605,3.60258463,3690.6,3690.3,0.4506]
[1736217366801,3.17898463,3690.6,3690.5,2.4180848]
[1736217367510,3.17898463,3690.6,3690.5,44.3180848]
[1736217367716,4.23832844,3690.8,3690.7,0.27085]
[1736217368012,4.23832844,3690.8,3690.7,5.68865]
[1736217368206,3.17913165,3691.0,3690.9,0.27084]
[1736217368412,3.17913165,3691.0,3690.9,4.5280548]
[1736217369115,3.17913165,3691.0,3690.9,2.38084]
[1736217369516,0.27079,3691.5,3690.9,42.91]
[1736217370009,0.27079,3691.5,3691.2,0.27081]
[1736217370718,4.50911844,3691.5,3691.2,0.27081]
[1736217371015,4.23832844,3691.5,3690.9,40.8]
[1736217371210,0.2708,3691.4,3691.1,0.27082]
[1736217371403,0.2708,3691.4,3690.9,40.8]
[1736217371713,0.2708,3691.4,3691.1,0.27082]
[1736217372014,4.50912844,3691.4,3691.1,0.27082]
[1736217372215,4.23832844,3691.4,3691.1,0.27082]
[1736217372613,0.4411,3691.3,3691.2,0.27081]
[1736217373111,4.67942844,3691.3,3690.9,40.8]
[1736217373519,0.27082,3691.2,3690.9,41.07083]
[1736217373717,0.8587,3691.1,3690.9,41.07083]
[1736217374012,0.27083,3691.0,3690.9,40.8]
[1736217374210,0.27086,3690.6,3690.3,0.27088]
[1736217374410,0.4378,3690.5,3690.4,0.27087]
[1736217374713,0.4378,3690.5,3690.4,41.07087]
[1736217374907,0.4378,3690.5,3690.4,40.8]
[1736217375416,0.70867,3690.5,3690.4,40.8]
[1736217376617,0.4378,3690.5,3690.4,40.8]
[1736217376818,0.4378,3690.5,3689.7,3.2078]
[1736217376819,4.94699844,3690.5,3690.1,0.27089]
[1736217377012,0.4212,3690.4,3690.1,0.27089]
[1736217377315,0.69208,3690.4,3690.1,40.8]
[1736217378114,4.23832844,3690.3,3690.1,40.8]
[1736217378516,0.27089,3690.2,3690.1,40.8]
[1736217379521,3.2078,3690.2,3689.7,3.2078]
[1736217379819,0.27092,3689.9,3689.7,3.2078]
[1736217380122,0.4212,3689.8,3689.3,0.27095]
[1736217380417,0.68753,3689.7,3689.4,0.27095]
[1736217380613,0.4166,3689.7,3689.5,40.8]
[1736217381416,0.4166,3689.7,3689.5,41.07093]
[1736217381815,4.656729,3689.7,3689.5,41.07093]
[1736217382514,4.656729,3689.7,3689.5,40.8]
[1736217383620,4.656729,3689.7,3689.5,41.07094]
[1736217384022,4.656729,3689.7,3689.6,0.27093]
[1736217384221,0.4166,3689.7,3689.6,0.27093]
[1736217384422,0.4166,3689.7,3689.5,40.8]
[1736217384622,0.4166,3689.7,3689.6,0.27093]
[1736217385524,0.4212,3689.8,3689.7,0.27092]
[1736217386215,0.4212,3689.8,3689.7,41.07092]
[1736217387620,0.2709,3690.1,3689.7,40.8]
[1736217387821,0.2709,3690.1,3689.8,0.27091]
[1736217388018,0.4293,3690.0,3689.8,0.27091]
[1736217388219,0.4293,3690.0,3689.9,0.27091]
[1736217389821,0.4293,3690.0,3689.7,40.8]
[1736217390021,0.4293,3690.0,3689.8,0.27091]
[1736217390526,0.4293,3690.0,3689.7,40.8]
[1736217390727,0.4293,3690.0,3689.8,0.27091]
[1736217391428,0.70021,3690.0,3689.7,40.8]
[1736217391625,0.70021,3690.0,3689.7,41.07092]
[1736217392021,0.4293,3690.0,3689.8,0.27092]
[1736217394728,0.4293,3690.0,3689.8,0.27091]
[1736217394928,0.4293,3690.0,3689.7,40.8]
[1736217395123,0.4293,3690.0,3689.9,0.27091]
[1736217395817,0.4293,3690.0,3689.7,40.8]
[1736217395818,0.4293,3690.0,3689.8,0.27091]
[1736217396624,0.4293,3690.0,3689.9,0.27091]
[1736217401027,0.4293,3690.0,3689.8,0.27091]
[1736217402428,0.7002,3690.0,3689.7,40.8]
[1736217402738,0.4293,3690.0,3689.8,0.27091]
[1736217403927,4.679829,3690.1,3689.8,1.06]
[1736217404229,4.950729,3690.1,3689.9,0.27091]
[1736217405431,0.27091,3689.9,3689.7,41.07092]
[1736217405633,4.679829,3690.1,3689.7,40.8]
[1736217405835,5.3550148,3690.0,3689.2,3.2078]
[1736217406040,0.27095,3689.4,3688.8,3.2078]
[1736217406235,0.8673,3689.3,3689.2,0.27096]
[1736217406430,1.2893,3689.3,3689.2,0.27096]
[1736217407134,1.2893,3689.3,3689.2,41.07096]
[1736217410433,4.240129,3689.6,3689.2,40.8]
[1736217410739,4.240129,3689.6,3689.5,0.27094]
[1736217411140,4.240129,3689.6,3689.3,0.2708]
[1736217411141,4.655629,3689.8,3689.7,0.27092]
[1736217412143,0.4155,3689.8,3689.7,0.27092]
[1736217413637,0.4155,3689.8,3689.4,2.1472148]
[1736217413838,0.4155,3689.8,3689.5,0.27094]
[1736217414049,0.27093,3689.7,3689.5,0.27094]
[1736217414340,0.68642,3689.8,3689.5,0.27094]
[1736217415442,0.4155,3689.8,3689.5,0.27094]
[1736217415643,4.926549,3689.8,3689.5,0.27094]
[1736217416643,4.240129,3689.7,3689.5,0.27094]
[1736217418139,4.240129,3689.7,3689.6,0.27093]
[1736217418544,4.240129,3689.7,3689.6,3.47873]
[1736217418841,0.4155,3689.8,3689.7,0.27092]
[1736217418842,4.655629,3689.8,3689.7,0.27092]
[1736217419944,0.4155,3689.8,3689.7,0.36092]
[1736217420938,0.4155,3689.8,3689.7,0.09]
[1736217421144,4.655629,3689.8,3689.7,0.36092]
[1736217421339,4.926549,3689.8,3689.5,0.27094]
[1736217421843,0.27093,3689.7,3689.4,0.27094]
[1736217422034,0.27093,3689.7,3689.5,0.27094]
[1736217422943,0.68642,3689.8,3689.5,0.27094]
[1736217423545,5.97841894,3689.8,3689.5,0.27094]
[1736217423744,5.70749894,3689.8,3689.6,0.27093]
[1736217424144,5.70749894,3689.8,3689.2,40.8]
[1736217424647,5.70749894,3689.8,3689.3,0.27095]
[1736217424848,0.27094,3689.6,3689.3,0.27095]
[1736217425844,5.29199894,3689.6,3689.2,40.8]
[1736217426051,5.29199894,3689.6,3689.4,0.27094]
[1736217427441,5.56292894,3689.6,3689.3,0.27095]
[1736217427640,5.29199894,3689.6,3689.2,40.8]
[1736217428253,5.29199894,3689.6,3689.4,0.27094]
[1736217428450,5.29199894,3689.6,3689.2,40.8]
[1736217428749,5.29199894,3689.6,3689.5,0.27094]
[1736217428948,5.29199894,3689.6,3689.4,0.27094]
[1736217429150,5.29199894,3689.6,3689.2,41.07096]
[1736217429151,4.24747873,3689.3,3689.2,41.07096]
[1736217430350,4.24747873,3689.4,3689.2,40.8]
[1736217430652,4.24747873,3689.4,3689.3,0.27095]
[1736217431447,4.24747873,3689.4,3689.2,40.8]
[1736217431448,4.24747873,3689.5,3689.4,0.27095]
[1736217433053,5.29199894,3689.6,3689.2,40.8]
[1736217433255,5.29199894,3689.6,3689.5,0.27093]
[1736217435952,5.29199894,3689.6,3689.2,40.8]
[1736217436152,0.4155,3689.8,3689.5,0.27094]
[1736217436153,0.68642,3689.8,3689.5,0.27094]
[1736217436950,0.4155,3689.8,3689.2,40.8]
[1736217437151,0.4155,3689.8,3689.6,0.27093]
[1736217439456,0.68642,3689.8,3689.6,0.27093]
[1736217440156,0.68642,3689.8,3689.5,0.27094]
[1736217440347,0.68642,3689.8,3689.2,40.8]
[1736217440551,0.68642,3689.8,3689.6,0.27093]
[1736217442957,1.65608025,3689.8,3689.6,0.27093]
[1736217444760,1.65608025,3689.8,3689.2,41.76966025]
[1736217444761,0.27093,3689.7,3689.5,0.27093]
[1736217444953,1.65608025,3689.8,3689.6,0.27093]
[1736217445956,1.65608025,3689.8,3689.2,41.76966025]
[1736217446156,1.65608025,3689.8,3689.5,0.27094]
[1736217447157,0.4155,3689.8,3689.7,0.27092]
[1736217447359,0.4155,3689.8,3689.6,0.27093]
[1736217447863,0.4155,3689.8,3689.7,0.27092]
[1736217448059,6.79309873,3689.9,3689.7,0.96966025]
[1736217448365,6.35039873,3689.9,3689.8,0.27092]
[1736217448560,6.35039873,3690.0,3689.8,0.15]
[1736217448863,6.35039873,3690.0,3689.9,42.04057025]
[1736217449657,11.66461377,3690.0,3689.9,42.04057025]
[1736217449859,5.31421504,3690.0,3689.9,42.04057025]
[1736217450059,5.31421504,3690.0,3689.9,41.07091]
[1736217450660,5.31421504,3690.0,3689.9,42.04057025]
[1736217453563,5.75641504,3690.1,3690.0,0.2709]
[1736217454667,0.4422,3690.1,3690.0,0.2709]
[1736217457166,1.41186025,3690.1,3689.4,3.2078]
[1736217457373,0.96966025,3689.9,3689.4,4.22746025]
[1736217457670,0.96966025,3689.9,3689.5,41.07093]
[1736217457671,0.27092,3689.8,3689.5,41.07093]
[1736217457972,0.27094,3689.5,3689.2,7.58513318]
[1736217458266,1.38786025,3689.7,3689.2,7.31417318]
[1736217458267,0.4351,3689.4,3689.2,7.31417318]
[1736217458464,0.4351,3689.4,3689.3,45.04497759]
[1736217458875,0.4351,3689.4,3689.3,45.31592759]
[1736217459069,0.4351,3689.4,3689.3,41.07095]
[1736217460071,0.4351,3689.4,3689.3,40.8]
[1736217460667,5.74523363,3689.4,3689.3,40.8]
[1736217460866,5.74523363,3689.4,3689.3,41.07095]
[1736217463268,5.74523363,3689.4,3689.3,42.04061025]
[1736217464270,5.31013363,3689.4,3689.3,42.04061025]
[1736217464575,5.31013363,3689.5,3689.4,0.27095]
[1736217464769,5.31013363,3689.5,3689.4,1.24061025]
[1736217465175,5.31013363,3689.5,3689.4,1.51151025]
[1736217465579,4.24790456,3689.5,3689.4,1.51151025]
[1736217467082,4.24790456,3689.5,3689.4,4.71931025]
[1736217468180,4.24790456,3689.5,3689.4,4.44841025]
[1736217468488,4.66610456,3689.7,3689.4,4.17746025]
[1736217468675,4.66610456,3689.7,3689.6,0.27093]
[1736217469781,5.72833363,3689.7,3689.6,0.27093]
[1736217471980,6.69799388,3689.7,3689.6,0.27093]
[1736217473883,1.38786025,3689.7,3689.6,0.27093]
[1736217474083,0.4182,3689.7,3689.6,0.27093]
[1736217477388,4.66463952,3689.7,3689.6,0.27093]
[1736217478486,0.4182,3689.7,3689.6,0.27093]
[1736217478991,4.24643952,3689.8,3689.7,0.27092]
[1736217479180,4.24643952,3689.8,3689.7,3.69058025]
[1736217479382,3.97202416,3689.8,3689.7,44.49058025]
[1736217480079,3.18449263,3689.8,3689.7,44.49058025]
[1736217481584,3.18449263,3689.9,3689.7,44.21966025]
[1736217481786,3.18449263,3689.9,3689.8,3.47872]
[1736217481986,3.18449263,3689.9,3689.8,3.94872]
[1736217482993,3.18449263,3689.9,3689.8,4.21962]
[1736217484891,3.18449263,3689.9,3689.8,3.94872]
[1736217485198,3.18449263,3689.9,3689.7,40.8]
[1736217485199,3.18449263,3689.9,3689.7,42.04060025]
[1736217485398,0.8982,3689.8,3689.7,41.76966025]
[1736217485896,0.8982,3689.8,3689.7,40.8]
[1736217486097,0.8982,3689.8,3689.7,41.07095]
[1736217487188,0.8982,3689.8,3689.7,40.8]
[1736217487387,1.16914,3689.8,3689.7,40.8]
[1736217487597,0.8982,3689.8,3689.7,40.8]
[1736217487897,6.20770489,3689.8,3689.7,40.8]
[1736217489300,0.8982,3689.8,3689.7,40.8]
[1736217490899,0.8982,3689.8,3689.7,41.07095]
[1736217492399,6.20299137,3689.8,3689.7,41.07095]
[1736217494098,6.20299137,3689.8,3689.7,40.8]
[1736217494294,6.20299137,3689.8,3689.7,41.07095]
[1736217495899,6.20299137,3689.8,3689.7,40.8]
[1736217497302,0.8982,3689.8,3689.7,40.8]
[1736217497702,0.8982,3689.8,3689.7,41.07095]
[1736217498695,0.8982,3689.8,3689.7,40.8]
[1736217500702,0.8982,3689.8,3689.7,41.07095]
[1736217500897,0.8982,3689.8,3689.7,40.8]
[1736217501102,0.8982,3689.8,3689.7,41.07095]
[1736217501604,0.8982,3689.8,3689.7,40.8]
[1736217503009,0.8982,3689.8,3689.7,41.07095]
[1736217504806,0.27096,3689.6,3689.2,0.27098]
[1736217505109,3.2078,3689.5,3688.8,4.24497759]
[1736217505409,3.2078,3689.1,3688.8,4.24497759]
[1736217505609,0.8587,3689.0,3688.8,4.24497759]
[1736217505912,1.3106,3689.0,3688.9,40.8]
[1736217508313,1.58159,3689.0,3688.9,40.8]
[1736217509109,2.55163691,3689.0,3688.9,40.8]
[1736217509611,2.28064691,3689.0,3688.9,40.8]
[1736217510315,7.57901084,3689.0,3688.9,40.8]
[1736217511214,2.28064691,3689.0,3688.9,40.8]
[1736217512407,2.55162691,3689.0,3688.9,40.8]
[1736217514309,9.16264886,3689.0,3687.9,0.2708]
[1736217514512,9.16264886,3689.0,3687.7,4.24497759]
[1736217514513,0.97004691,3688.0,3687.7,4.24497759]
[1736217514718,1.3188,3687.9,3687.8,0.27107]
[1736217515209,1.3188,3687.9,3687.8,41.07107]
[1736217518607,1.3188,3687.9,3687.8,40.8]
[1736217518814,3.74070092,3687.9,3687.8,40.8]
[1736217519717,0.27108,3687.7,3687.3,0.2711]
[1736217520114,0.27109,3687.6,3687.3,0.2711]
[1736217520817,3.2078,3687.7,3687.4,40.8]
[1736217520818,6.65434025,3687.7,3687.4,40.8]
[1736217521615,3.47888,3687.7,3687.4,40.8]
[1736217522618,3.2078,3687.7,3687.4,41.0711]
[1736217523725,3.2078,3687.7,3687.4,40.8]
[1736217523920,3.2078,3687.7,3687.6,0.27109]
[1736217524411,1.3188,3687.9,3687.4,40.8]
[1736217524816,1.3188,3687.9,3687.5,0.27109]
[1736217525218,1.3188,3687.9,3687.6,0.27108]
[1736217525422,1.3188,3687.9,3687.7,0.27108]
[1736217525622,1.3188,3687.9,3687.6,0.27108]
[1736217526517,0.27107,3687.8,3687.5,0.27109]
[1736217527115,0.27107,3687.8,3687.4,41.0711]
[1736217527720,0.27107,3687.8,3687.5,0.27109]
[1736217528824,0.27107,3687.8,3687.4,40.8]
[1736217529027,1.3188,3687.9,3687.6,0.27108]
[1736217529222,1.58986,3687.9,3687.6,0.27108]
[1736217529822,1.3188,3687.9,3687.4,40.8]
[1736217530125,0.27107,3687.8,3687.5,0.27109]
[1736217530428,1.3188,3687.9,3687.4,40.8]
[1736217530631,1.3188,3687.9,3687.6,0.27108]
[1736217531431,1.58986,3687.9,3687.6,0.27108]
[1736217533319,1.3188,3687.9,3687.6,0.27108]
[1736217533628,0.27107,3687.8,3687.6,0.27108]
[1736217534129,0.27108,3687.7,3687.5,0.27109]
[1736217534729,1.3188,3687.9,3687.4,40.8]
[1736217534932,1.58987,3687.9,3687.6,0.27108]
[1736217537131,0.27109,3687.5,3687.4,40.8]
[1736217538134,10.9140648,3687.8,3686.8,3.2078]
[1736217538334,0.4312,3687.4,3687.2,0.03]
[1736217538531,0.8904,3687.3,3687.2,0.03]
[1736217538736,0.8904,3687.3,3687.2,40.83]
[1736217539327,0.8904,3687.3,3687.2,40.8]
[1736217540035,0.8904,3687.3,3687.2,41.07111]
[1736217540531,0.8904,3687.3,3687.2,40.8]
[1736217540937,0.8904,3687.3,3686.7,0.2712]
[1736217541238,0.8904,3687.3,3686.7,0.54235]
[1736217541239,3.04231052,3687.3,3686.7,0.54235]
[1736217541435,3.04231052,3687.3,3686.8,40.8]
[1736217541735,3.31342052,3687.3,3686.9,0.27113]